fUST/lending_fUST_20250930
["ID","MTS","AMOUNT","RATE_DAILY","PERIOD"]
[388487895,1759204840179,500.0,0.00020044,2]
[388487896,1759204840216,500.0,0.00020044,2]
[388487897,1759204840257,500.0,0.00020044,2]
[388487898,1759204840292,202.71545117,0.00020044,2]
[388487899,1759204840323,586.63676224,0.00020044,2]
[388487900,1759204840351,500.0,0.00020044,2]
[388487901,1759204840383,500.0,0.00020044,2]
[388487902,1759204840410,500.0,0.00020044,2]
[388487903,1759204840463,500.0,0.00020044,2]
[388487904,1759204840490,236.91735773,0.00020044,2]
[388487905,1759204847912,4485.06882149,0.00020044,2]
[388487906,1759204847934,514.93117851,0.00020044,2]
[388487907,1759204849786,509.78,0.00020035,3]
[388487908,1759204856336,159.2550529,0.00020033,2]
[388487909,1759204857684,8816.04376859,0.0001973,2]
[388487910,1759204857708,8488.73496921,0.0001973,2]
[388487911,1759204871117,1511.27503079,0.00020044,2]
[388487912,1759204871144,3488.72496921,0.00020044,2]
[388487913,1759204875602,203.74681374,0.00020033,2]
[388487914,1759204875808,300.0,0.00020044,2]
[388487916,1759204878981,666.0,0.00019776,2]
[388487917,1759204894427,5000.0,0.00020044,2]
[388487918,1759204917811,341.53821705,0.00020044,2]
[388487919,1759204917834,4658.46178295,0.00020044,2]
[388487920,1759204917887,285.3509983,0.0002002,2]
[388487921,1759204919710,203.69420891,0.00020004,2]
[388487922,1759204922611,300.0,0.00020044,2]
[388487923,1759204924178,1544.847745,0.00020033,2]
[388487926,1759204925371,3007.65526484,0.00019718,2]
[388487927,1759204925392,10000.01,0.00019718,2]
[388487928,1759204925413,10000.01,0.00019718,2]
[388487929,1759204925434,10000.01,0.00019718,2]
[388487930,1759204925454,10000.01,0.00019718,2]
[388487931,1759204925475,10000.01,0.00019718,2]
[388487932,1759204925495,10000.01,0.00019718,2]
[388487933,1759204925517,5033.46135866,0.00019718,2]
[388487934,1759204933894,868.06243139,0.00020033,2]
[388487935,1759204940337,1200.0,0.00020044,2]
[388487936,1759204941079,5000.0,0.00020045,2]
[388487937,1759204946436,500.0,0.00020044,2]
[388487938,1759204946468,500.0,0.00020044,2]
[388487939,1759204946496,500.0,0.00020044,2]
[388487940,1759204946522,302.70390043,0.00020044,2]
[388487941,1759204946549,154.02278315,0.00020044,2]
[388487942,1759204946575,500.0,0.00020044,2]
[388487943,1759204946603,475.22088503,0.00020044,2]
[388487944,1759204946623,24.77911497,0.00020044,2]
[388487945,1759204946649,500.0,0.00020044,2]
[388487946,1759204946678,500.0,0.00020044,2]
[388487947,1759204946704,500.0,0.00020044,2]
[388487948,1759204946735,500.0,0.00020044,2]
[388487949,1759204946761,500.0,0.00020044,2]
[388487950,1759204946791,193.25219191,0.00020044,2]
[388487951,1759204946818,500.0,0.00020044,2]
[388487952,1759204946854,500.0,0.00020044,2]
[388487953,1759204946884,500.0,0.00020044,2]
[388487954,1759204946910,604.74413676,0.00020044,2]
[388487955,1759204946936,500.0,0.00020044,2]
[388487956,1759204946962,500.0,0.00020044,2]
[388487957,1759204956836,500.0,0.00020044,2]
[388487958,1759204956886,500.0,0.00020044,2]
[388487959,1759204956943,500.0,0.00020044,2]
[388487960,1759204962398,402.75,0.00020035,3]
[388487961,1759204963710,2274.48455636,0.00020045,2]
[388487962,1759204963731,2725.51544364,0.00020045,2]
[388487963,1759204969010,500.0,0.00020044,2]
[388487964,1759204969037,500.0,0.00020044,2]
[388487965,1759204969068,500.0,0.00020044,2]
[388487966,1759204969098,500.0,0.00020044,2]
[388487967,1759204969124,500.0,0.00020044,2]
[388487968,1759204969150,500.0,0.00020044,2]
[388487969,1759204969176,380.00000001,0.00020044,2]
[388487970,1759204969202,478.61992165,0.00020044,2]
[388487971,1759204969229,500.0,0.00020044,2]
[388487972,1759204969255,500.0,0.00020044,2]
[388487973,1759204969286,500.0,0.00020044,2]
[388487974,1759204969318,500.0,0.00020044,2]
[388487975,1759204969344,500.0,0.00020044,2]
[388487976,1759204969371,500.0,0.00020044,2]
[388487977,1759204969397,415.8746347,0.00020044,2]
[388487978,1759204969419,84.1253653,0.00020044,2]
[388487979,1759204973016,201.37,0.00020035,3]
[388487980,1759204982850,300.0,0.00020044,2]
[388487981,1759204983632,382.61,0.00020035,3]
[388487982,1759204986891,500.0,0.00020044,2]
[388487983,1759204987356,5000.0,0.00020045,2]
[388487984,1759204987394,500.0,0.00020044,2]
[388487985,1759204998503,-191.31,0.00020035,3]
[388487986,1759204998800,-577.18843025,0.00020044,2]
[388487987,1759205008504,-573.94,0.00020035,3]
[388487988,1759205017821,-5000.0,0.00019844,2]
[388487989,1759205017912,-457.58144814,0.00020044,2]
[388487990,1759205018315,-5467.20913587,0.00020045,2]
[388487991,1759205018450,-10000.01,0.00020045,2]
[388487992,1759205018603,-10000.01,0.00020045,2]
[388487993,1759205018773,-10000.01,0.00020045,2]
[388487994,1759205018911,-10000.01,0.00020045,2]
[388487995,1759205019061,-10000.01,0.00020045,2]
[388487996,1759205022400,-10000.01,0.00020045,2]
[388487997,1759205022602,-10000.01,0.00020045,2]
[388487998,1759205022732,-10000.01,0.00020045,2]
[388487999,1759205028573,-10000.01,0.00020045,2]
[388488000,1759205028699,-10000.01,0.00020045,2]
[388488001,1759205028822,-10000.01,0.00020045,2]
[388488002,1759205028932,-10000.01,0.00020045,2]
[388488003,1759205029067,-10000.01,0.00020045,2]
[388488004,1759205029190,-10000.01,0.00020045,2]
[388488005,1759205048825,-5000.0,0.00019844,2]
[388488006,1759205056650,0.01,0.00019844,2]
[388488007,1759205056673,4999.99,0.00019844,2]
[388488008,1759205072045,2051.41397404,0.00019844,2]
[388488009,1759205080480,2948.60602596,0.00019844,2]
[388488010,1759205080503,2051.39397404,0.00019844,2]
[388488011,1759205103646,5000.0,0.00019844,2]
[388488012,1759205110437,771.0,0.00019,5]
[388488013,1759205111828,2177.61602596,0.00019844,2]
[388488014,1759205111850,2822.38397404,0.00019844,2]
[388488015,1759205127359,5000.0,0.00019844,2]
[388488016,1759205131281,154.0,7.9e-07,2]
[388488017,1759205132374,154.0,7.9e-07,2]
[388488018,1759205135834,1869.62602596,0.00019844,2]
[388488019,1759205135855,3130.37397404,0.00019844,2]
[388488020,1759205151264,161.203563,0.00019058,2]
[388488021,1759205151984,5000.0,0.00019844,2]
[388488022,1759205160301,410.486327,0.00019844,2]
[388488024,1759205162686,242.46028471,0.00019745,2]
[388488025,1759205163723,-1000.0,0.0002,5]
[388488026,1759205176160,2390.88023311,0.0002,2]
[388488027,1759205235691,938.77246731,0.00019944,2]
[388488028,1759205252183,4670.35729958,0.0002,2]
[388488029,1759205252206,287.9574731,0.0002,2]
[388488030,1759205290844,9712.0525269,0.00019044,2]
[388488031,1759205290865,9520.0567037,0.00019044,2]
[388488032,1759205298640,-1200.0,0.00020042,2]
[388488033,1759205298670,-300.0,0.00020042,2]
[388488034,1759205311425,3354.05930864,0.00020042,2]
[388488035,1759205313049,500.0,0.00020042,2]
[388488036,1759205313091,398.25900344,0.00020042,2]
[388488037,1759205313124,500.0,0.00020042,2]
[388488038,1759205313594,500.0,0.00020042,2]
[388488039,1759205313741,516.58730081,0.00020042,2]
[388488040,1759205314354,500.0,0.00020042,2]
[388488041,1759205314383,500.0,0.00020042,2]
[388488042,1759205314410,231.10438711,0.00020042,2]
[388488043,1759205314433,268.89561289,0.00020042,2]
[388488044,1759205314461,500.0,0.00020042,2]
[388488045,1759205314487,500.0,0.00020042,2]
[388488046,1759205314513,500.0,0.00020042,2]
[388488047,1759205314541,500.0,0.00020042,2]
[388488048,1759205314572,500.0,0.00020042,2]
[388488049,1759205314606,500.0,0.00020042,2]
[388488050,1759205314633,500.0,0.00020042,2]
[388488051,1759205314662,500.0,0.00020042,2]
[388488052,1759205314688,500.0,0.00020042,2]
[388488053,1759205314714,500.0,0.00020042,2]
[388488054,1759205314741,500.0,0.00020042,2]
[388488055,1759205314768,500.0,0.00020042,2]
[388488056,1759205314998,500.0,0.00020042,2]
[388488057,1759205315025,378.19412772,0.00020042,2]
[388488058,1759205315056,500.0,0.00020042,2]
[388488059,1759205315083,500.0,0.00020042,2]
[388488060,1759205315109,500.0,0.00020042,2]
[388488061,1759205315135,500.0,0.00020042,2]
[388488062,1759205315160,500.0,0.00020042,2]
[388488063,1759205315188,352.92025939,0.00020042,2]
[388488064,1759205315210,147.07974061,0.00020042,2]
[388488065,1759205315235,323.69173578,0.00020042,2]
[388488066,1759205315273,648.65887848,0.00020042,2]
[388488067,1759205315300,506.13391061,0.00020042,2]
[388488068,1759205315329,500.0,0.00020042,2]
[388488069,1759205315357,500.0,0.00020042,2]
[388488070,1759205315384,500.0,0.00020042,2]
[388488071,1759205315411,367.857147,0.00020042,2]
[388488072,1759205315438,500.0,0.00020042,2]
[388488073,1759205315468,500.0,0.00020042,2]
[388488074,1759205315496,500.0,0.00020042,2]
[388488075,1759205315521,236.0081,0.00020042,2]
[388488076,1759205315557,500.0,0.00020042,2]
[388488077,1759205315585,500.0,0.00020042,2]
[388488078,1759205315611,500.0,0.00020042,2]
[388488079,1759205315637,500.0,0.00020042,2]
[388488080,1759205315664,200.51338667,0.00020042,2]
[388488081,1759205315693,500.0,0.00020042,2]
[388488082,1759205315718,500.0,0.00020042,2]
[388488083,1759205315746,500.0,0.00020042,2]
[388488084,1759205315771,490.19800843,0.00020042,2]
[388488085,1759205315795,500.0,0.00020042,2]
[388488086,1759205315823,79.86909242,0.00020042,2]
[388488087,1759205315846,420.13090758,0.00020042,2]
[388488088,1759205315876,500.0,0.00020042,2]
[388488089,1759205315911,500.0,0.00020042,2]
[388488090,1759205315938,500.0,0.00020042,2]
[388488091,1759205315966,500.0,0.00020042,2]
[388488092,1759205315997,500.0,0.00020042,2]
[388488093,1759205316024,500.0,0.00020042,2]
[388488094,1759205316054,500.0,0.00020042,2]
[388488095,1759205316080,500.0,0.00020042,2]
[388488096,1759205316107,500.0,0.00020042,2]
[388488097,1759205316136,500.0,0.00020042,2]
[388488098,1759205316165,290.17677874,0.00020042,2]
[388488099,1759205316196,500.0,0.00020042,2]
[388488100,1759205316222,500.0,0.00020042,2]
[388488101,1759205316262,500.0,0.00020042,2]
[388488102,1759205316289,500.0,0.00020042,2]
[388488103,1759205316317,500.0,0.00020042,2]
[388488104,1759205316352,500.0,0.00020042,2]
[388488105,1759205316379,500.0,0.00020042,2]
[388488106,1759205319346,789.70231368,0.00020042,2]
[388488107,1759205319368,4210.29768632,0.00020042,2]
[388488108,1759205322768,879.21,0.00020035,3]
[388488109,1759205328577,4910.50231368,0.00020042,2]
[388488110,1759205367576,685.7126194,0.00019043,2]
[388488112,1759205382111,302.42545213,0.00018948,2]
[388488113,1759205398044,447.06213,0.00018924,2]
[388488157,1759205432311,-302.42545213,0.00019137,2]
[388488158,1759205432320,-302.42545213,0.00019327,2]
[388488159,1759205432329,-4020.13212374,0.00019381,2]
[388488301,1759205437970,-781.04,0.00019381,2]
[388488308,1759205441350,-0.0333805,0.00019381,2]
[388488329,1759205443170,-198.79449576,0.00019381,2]
[388488331,1759205443180,-189.4226068,0.00019577,2]
[388488333,1759205443190,-177.77452911,0.0002,2]
[388488338,1759205443224,-409.7404055,0.0002,2]
[388488340,1759205443234,-837.07134935,0.00020033,2]
[388488346,1759205443278,-162.92865065,0.00020033,2]
[388488348,1759205443287,-316.28675573,0.00020033,2]
[388488485,1759205454247,48391.26821821,0.00019081,2]
[388488488,1759205514933,-267.5510871,0.00019833,2]
[388488490,1759205517694,-200.77356247,0.00019833,2]
[388488493,1759205520528,-160.23361501,0.00019833,2]
[388488494,1759205523580,-203.26568249,0.00019833,2]
[388488495,1759205525875,-341.54319708,0.00019833,2]
[388488496,1759205528833,-385.83487905,0.00019833,2]
[388488497,1759205531129,-271.5410163,0.00019833,2]
[388488500,1759205535026,-169.7629512,0.00019833,2]
[388488502,1759205537241,-300.0,0.00019833,2]
[388488503,1759205539023,-74.17948274,0.00019833,2]
[388488505,1759205748984,446.2396354,0.00019033,2]
[388488506,1759205751924,-168.0,0.0001979,2]
[388488507,1759205751952,-159.2550529,0.00019873,2]
[388488508,1759205788103,710.4050005,0.00019184,2]
[388488509,1759205809863,276.3394246,0.00019031,2]
[388488510,1759205824155,300.0,0.000192,2]
[388488511,1759205836031,300.0,0.000192,2]
[388488512,1759205843477,894.88325854,0.00019873,2]
[388488513,1759205846948,300.0,0.000192,2]
[388488514,1759206056419,-598.0,0.00019879,2]
[388488515,1759206083590,8804.01,0.000195,2]
[388488516,1759206083611,10000.01,0.000195,2]
[388488517,1759206083634,10000.01,0.000195,2]
[388488518,1759206083656,10000.01,0.000195,2]
[388488519,1759206083677,10000.01,0.000195,2]
[388488520,1759206083697,10000.01,0.000195,2]
[388488521,1759206083718,10000.01,0.000195,2]
[388488522,1759206083739,5471.93,0.000195,2]
[388488523,1759206110522,4528.08,0.000198,2]
[388488524,1759206110543,10000.01,0.000198,2]
[388488525,1759206110566,10000.01,0.000198,2]
[388488526,1759206110587,10000.01,0.000198,2]
[388488527,1759206110608,10000.01,0.000198,2]
[388488528,1759206110628,10000.01,0.000198,2]
[388488529,1759206110649,10000.01,0.000198,2]
[388488530,1759206110671,10000.01,0.000198,2]
[388488531,1759206110692,10000.01,0.000198,2]
[388488532,1759206110713,10000.01,0.000198,2]
[388488533,1759206122524,-300.0,0.00019799,2]
[388488534,1759206127256,-1315.16006368,0.000198,2]
[388488535,1759206127291,-10000.01,0.000198,2]
[388488536,1759206127500,-10000.01,0.000198,2]
[388488537,1759206127541,-10000.01,0.000198,2]
[388488538,1759206131415,-10000.01,0.000198,2]
[388488539,1759206131540,-10000.01,0.000198,2]
[388488540,1759206131670,-10000.01,0.000198,2]
[388488541,1759206131782,-783.02285124,0.00019797,2]
[388488542,1759206131820,-8433.96429752,0.000198,2]
[388488543,1759206131916,-10000.01,0.000198,2]
[388488544,1759206132054,-10000.01,0.000198,2]
[388488545,1759206132166,-10000.01,0.000198,2]
[388488546,1759206136580,-10000.01,0.000198,2]
[388488547,1759206136791,-10000.01,0.000198,2]
[388488548,1759206143056,-10000.01,0.000198,2]
[388488549,1759206143177,-10000.01,0.000198,2]
[388488550,1759206143310,-10000.01,0.000198,2]
[388488551,1759206143426,-10000.01,0.000198,2]
[388488552,1759206143540,-10000.01,0.000198,2]
[388488553,1759206143667,-10000.01,0.000198,2]
[388488554,1759206143785,-10000.01,0.000198,2]
[388488555,1759206143953,-10000.01,0.000198,2]
[388488556,1759206146126,165.945385,0.0001979,2]
[388488557,1759206146150,242.60747754,0.0001979,2]
[388488558,1759206146178,300.0,0.0001979,2]
[388488559,1759206146202,187.97996752,0.0001979,2]
[388488560,1759206146227,500.00482423,0.0001979,2]
[388488561,1759206147430,-3603.46234571,0.0001979,2]
[388488562,1759206147464,-2793.08530858,0.000198,2]
[388488563,1759206154450,-10000.01,0.000198,2]
[388488564,1759206154635,-10000.01,0.000198,2]
[388488565,1759206154794,-10000.01,0.000198,2]
[388488566,1759206154931,-10000.01,0.000198,2]
[388488567,1759206155070,-10000.01,0.000198,2]
[388488568,1759206155180,-10000.01,0.000198,2]
[388488569,1759206155294,-10000.01,0.000198,2]
[388488570,1759206155427,-2929.36033022,0.000198,2]
[388488571,1759206157934,1200.0,0.00019799,2]
[388488572,1759206162648,500.0,0.00019799,2]
[388488573,1759206162679,278.78130241,0.00019799,2]
[388488574,1759206162716,500.0,0.00019799,2]
[388488575,1759206162934,500.0,0.00019799,2]
[388488576,1759206163056,500.0,0.00019799,2]
[388488577,1759206163280,500.0,0.00019799,2]
[388488578,1759206163316,162.50803715,0.00019799,2]
[388488579,1759206163338,337.49196285,0.00019799,2]
[388488580,1759206163372,500.0,0.00019799,2]
[388488581,1759206163405,500.0,0.00019799,2]
[388488582,1759206163443,500.0,0.00019799,2]
[388488583,1759206163479,500.0,0.00019799,2]
[388488584,1759206163512,500.0,0.00019799,2]
[388488585,1759206163565,500.0,0.00019799,2]
[388488586,1759206163592,500.0,0.00019799,2]
[388488587,1759206163710,500.0,0.00019799,2]
[388488588,1759206164364,515.13372831,0.00019799,2]
[388488589,1759206164391,167.34821229,0.00019799,2]
[388488590,1759206164418,500.0,0.00019799,2]
[388488591,1759206164445,188.94593185,0.00019799,2]
[388488592,1759206164473,500.0,0.00019799,2]
[388488593,1759206164499,500.0,0.00019799,2]
[388488594,1759206164530,369.29908175,0.00019799,2]
[388488595,1759206164560,500.0,0.00019799,2]
[388488596,1759206164589,500.0,0.00019799,2]
[388488597,1759206164620,500.0,0.00019799,2]
[388488598,1759206164653,500.0,0.00019799,2]
[388488599,1759206164681,500.0,0.00019799,2]
[388488600,1759206164711,421.79108295,0.00019799,2]
[388488601,1759206164733,78.20891705,0.00019799,2]
[388488602,1759206164765,500.0,0.00019799,2]
[388488603,1759206164792,500.0,0.00019799,2]
[388488604,1759206164821,500.0,0.00019799,2]
[388488605,1759206164853,500.0,0.00019799,2]
[388488606,1759206164886,500.0,0.00019799,2]
[388488607,1759206164917,500.0,0.00019799,2]
[388488608,1759206164946,500.0,0.00019799,2]
[388488609,1759206164973,517.64147723,0.00019799,2]
[388488610,1759206165004,500.0,0.00019799,2]
[388488611,1759206165036,500.0,0.00019799,2]
[388488612,1759206165064,500.0,0.00019799,2]
[388488613,1759206165094,500.0,0.00019799,2]
[388488614,1759206165126,500.0,0.00019799,2]
[388488615,1759206165155,500.0,0.00019799,2]
[388488616,1759206165186,500.0,0.00019799,2]
[388488617,1759206165215,500.0,0.00019799,2]
[388488618,1759206165246,500.0,0.00019799,2]
[388488619,1759206165275,500.0,0.00019799,2]
[388488620,1759206165303,500.0,0.00019799,2]
[388488621,1759206165332,404.15960572,0.00019799,2]
[388488622,1759206165355,95.84039428,0.00019799,2]
[388488623,1759206165383,500.0,0.00019799,2]
[388488624,1759206165415,500.0,0.00019799,2]
[388488625,1759206165442,500.0,0.00019799,2]
[388488626,1759206165472,500.0,0.00019799,2]
[388488627,1759206165500,500.0,0.00019799,2]
[388488628,1759206165533,500.0,0.00019799,2]
[388488629,1759206165577,500.0,0.00019799,2]
[388488630,1759206165604,500.0,0.00019799,2]
[388488631,1759206165630,500.0,0.00019799,2]
[388488632,1759206165659,500.0,0.00019799,2]
[388488633,1759206165686,500.0,0.00019799,2]
[388488634,1759206165716,500.0,0.00019799,2]
[388488635,1759206165750,500.0,0.00019799,2]
[388488636,1759206165783,500.0,0.00019799,2]
[388488637,1759206165815,500.0,0.00019799,2]
[388488638,1759206165847,478.22060599,0.00019799,2]
[388488639,1759206165880,500.0,0.00019799,2]
[388488640,1759206165926,500.0,0.00019799,2]
[388488641,1759206165960,500.0,0.00019799,2]
[388488642,1759206165993,425.94899973,0.00019799,2]
[388488643,1759206166018,74.05100027,0.00019799,2]
[388488644,1759206166054,500.0,0.00019799,2]
[388488645,1759206166089,500.0,0.00019799,2]
[388488646,1759206166121,500.0,0.00019799,2]
[388488647,1759206166151,500.0,0.00019799,2]
[388488648,1759206166181,500.0,0.00019799,2]
[388488649,1759206166218,500.0,0.00019799,2]
[388488650,1759206166260,500.0,0.00019799,2]
[388488651,1759206166294,500.0,0.00019799,2]
[388488652,1759206166323,500.0,0.00019799,2]
[388488653,1759206166351,500.0,0.00019799,2]
[388488654,1759206166392,500.0,0.00019799,2]
[388488655,1759206171166,184.39571548,0.00019798,2]
[388488656,1759206178356,500.0,0.00019799,2]
[388488657,1759206178390,500.0,0.00019799,2]
[388488658,1759206178426,500.0,0.00019799,2]
[388488659,1759206178469,334.20492647,0.00019799,2]
[388488660,1759206178512,500.0,0.00019799,2]
[388488661,1759206178865,500.0,0.00019799,2]
[388488662,1759206179162,500.0,0.00019799,2]
[388488663,1759206179206,500.0,0.00019799,2]
[388488664,1759206179238,407.35835778,0.00019799,2]
[388488665,1759206179262,92.64164222,0.00019799,2]
[388488666,1759206179390,500.0,0.00019799,2]
[388488667,1759206179416,1320.0,0.000197,2]
[388488668,1759206197154,500.0,0.00019799,2]
[388488669,1759206197186,500.0,0.00019799,2]
[388488670,1759206209137,194.01767787,0.00019799,2]
[388488671,1759206211892,480.0,0.00019799,2]
[388488673,1759206219878,161.203563,0.0001895,2]
[388488674,1759206273578,1087.61,0.00019799,2]
[388488676,1759206278951,480.0,0.00019799,2]
[388488677,1759206279815,480.0,0.00019799,2]
[388488678,1759206280801,210.38575,0.00028,120]
[388488679,1759206288061,4204.53711691,0.00019797,2]
[388488680,1759206288084,10000.01,0.00019797,2]
[388488681,1759206288108,10000.01,0.00019797,2]
[388488682,1759206288130,10000.01,0.00019797,2]
[388488683,1759206288152,10000.01,0.00019797,2]
[388488684,1759206288173,10000.01,0.00019797,2]
[388488685,1759206288196,10000.01,0.00019797,2]
[388488686,1759206288218,10000.01,0.00019797,2]
[388488687,1759206288239,10000.01,0.00019797,2]
[388488688,1759206288262,10000.01,0.00019797,2]
[388488689,1759206288749,210.7445,0.00028,120]
[388488690,1759206303897,-300.0,0.00019796,2]
[388488691,1759206303927,-300.0,0.00019796,2]
[388488692,1759206303957,-300.0,0.00019796,2]
[388488693,1759206303984,-300.0,0.00019796,2]
[388488694,1759206304015,-300.0,0.00019796,2]
[388488695,1759206305030,-2858.72066044,0.00019797,2]
[388488696,1759206305068,-10000.01,0.00019797,2]
[388488697,1759206305115,-10000.01,0.00019797,2]
[388488698,1759206305129,-10000.01,0.00019797,2]
[388488699,1759206305147,-10000.01,0.00019797,2]
[388488700,1759206305171,-10000.01,0.00019797,2]
[388488701,1759206305287,-10000.01,0.00019797,2]
[388488702,1759206305637,210.7445,0.00028,120]
[388488703,1759206308220,-1200.0,0.00019796,2]
[388488704,1759206308259,-7600.01,0.00019797,2]
[388488705,1759206308334,-10000.01,0.00019797,2]
[388488706,1759206326792,-335.54,0.00019787,3]
[388488707,1759206326855,-9328.93,0.00019797,2]
[388488708,1759206326869,-10000.01,0.00019797,2]
[388488709,1759206326898,-10000.01,0.00019797,2]
[388488710,1759206327037,-10000.01,0.00019797,2]
[388488711,1759206327152,-10000.01,0.00019797,2]
[388488712,1759206327341,-10000.01,0.00019797,2]
[388488713,1759206327536,-10000.01,0.00019797,2]
[388488714,1759206327751,-10000.01,0.00019797,2]
[388488715,1759206345359,232.17014799,0.0002011,13]
[388488716,1759206348622,-10000.01,0.00019797,2]
[388488717,1759206348894,-10000.01,0.00019797,2]
[388488718,1759206352922,-480.0,0.00019796,2]
[388488719,1759206352958,-9040.01,0.00019797,2]
[388488720,1759206353024,-10000.01,0.00019797,2]
[388488721,1759206353135,-10000.01,0.00019797,2]
[388488722,1759206353299,-10000.01,0.00019797,2]
[388488723,1759206353420,-10000.01,0.00019797,2]
[388488724,1759206354597,-10000.01,0.00019797,2]
[388488725,1759206354763,-10000.01,0.00019797,2]
[388488726,1759206358230,-10000.01,0.00019797,2]
[388488727,1759206358341,-10000.01,0.00019797,2]
[388488728,1759206381977,-3032.54777735,0.00019797,2]
[388488729,1759206382000,-3934.9144453,0.00019797,2]
[388488730,1759206396219,482.57813904,0.00019796,2]
[388488731,1759206418510,480.0,0.00019796,2]
[388488732,1759206424187,480.0,0.00019796,2]
[388488733,1759206441315,518.45,0.00019796,2]
[388488734,1759206449339,480.0,0.00019796,2]
[388488735,1759206452541,7558.98186096,0.00019797,2]
[388488736,1759206452566,10000.01,0.00019797,2]
[388488737,1759206452588,10000.01,0.00019797,2]
[388488739,1759206535585,312.315957,0.00018796,2]
[388488778,1759206632133,-300.0,0.000192,2]
[388488779,1759206632143,-184.49001761,0.00019696,2]
[388488780,1759206632152,-184.49001759,0.00019697,2]
[388488781,1759206632161,-184.49001759,0.00019697,2]
[388488782,1759206632170,-1200.0,0.00019771,2]
[388488783,1759206632179,-300.0,0.00019772,2]
[388488784,1759206632188,-300.0,0.00019772,2]
[388488785,1759206632197,-300.0,0.00019772,2]
[388488786,1759206632206,-300.0,0.00019772,2]
[388488787,1759206632215,-300.0,0.00019772,2]
[388488788,1759206632224,-500.0,0.00019773,2]
[388488789,1759206632233,-500.0,0.00019773,2]
[388488791,1759206632243,-500.0,0.00019773,2]
[388488794,1759206632255,-500.0,0.00019773,2]
[388488796,1759206632264,-500.0,0.00019773,2]
[388488799,1759206632273,-593.7781974,0.00019773,2]
[388488801,1759206632282,-500.0,0.00019773,2]
[388488803,1759206632291,-500.0,0.00019773,2]
[388488805,1759206632300,-500.0,0.00019773,2]
[388488807,1759206632309,-502.03063295,0.00019773,2]
[388488809,1759206632317,-500.0,0.00019773,2]
[388488811,1759206632326,-500.0,0.00019773,2]
[388488813,1759206632335,-292.23,0.00019787,3]
[388488815,1759206632344,-292.23,0.00019787,3]
[388488817,1759206632353,-219.18,0.00019787,3]
[388488819,1759206632362,-255.71,0.00019787,3]
[388488821,1759206632371,-767.16,0.00019787,3]
[388488823,1759206632379,-480.0,0.00019795,2]
[388488824,1759206632388,-480.0,0.00019795,2]
[388488826,1759206632397,-480.0,0.00019795,2]
[388488828,1759206632406,-480.0,0.00019795,2]